bitfinex-derivatives/quotes_SOLF0:USTF0_20250709
["timestamp","ask_amount","ask_price","bid_price","bid_amount"]
[1752064383065,3.02057337,153.95,153.92,0.04116769]
[1752064383568,6.4955,153.93,153.92,0.04116769]
[1752064385372,3.02057337,153.95,153.92,0.04116769]
[1752064386072,6.4955,153.93,153.92,0.04116769]
[1752064389372,6.4952,153.94,153.92,0.04116769]
[1752064389777,0.04905843,153.95,153.92,6.53676769]
[1752064390171,6.54385843,153.95,153.92,6.53676769]
[1752064390669,6.54385843,153.95,153.93,6.4954]
[1752064391276,6.54385843,153.95,153.92,6.53686769]
[1752064391677,6.54385843,153.95,153.92,0.04116769]
[1752064391876,0.04905843,153.95,153.93,6.4953]
[1752064393274,0.04905843,153.95,153.94,6.4951]
[1752064402983,2.97151494,154.01,153.98,6.4931]
[1752064403392,6.4925,154.0,153.98,6.4931]
[1752064404891,6.493,153.99,153.97,6.53828512]
[1752064405297,5.28731494,154.02,153.97,0.04468512]
[1752064405487,6.4928,154.0,153.97,0.04468512]
[1752064405885,6.4928,154.0,153.97,6.53818512]
[1752064406585,6.4928,154.0,153.97,0.04468512]
[1752064406791,6.4928,154.0,153.98,6.4933]
[1752064407291,6.4928,154.0,153.97,6.53818512]
[1752064408795,6.493,153.99,153.97,0.04468512]
[1752064409000,2.97151494,154.0,153.97,0.04468512]
[1752064409495,6.4933,153.99,153.97,0.04468512]
[1752064409700,2.97151494,154.0,153.97,0.04468512]
[1752064410098,2.97151494,154.0,153.97,6.53848512]
[1752064410297,6.4932,153.99,153.97,6.53848512]
[1752064410896,6.4932,153.99,153.97,0.04468512]
[1752064411197,2.97151494,154.01,153.97,0.04468512]
[1752064411597,6.4934,153.98,153.97,0.04468512]
[1752064412299,6.4931,153.99,153.97,0.04468512]
[1752064412824,2.3158,154.02,153.97,0.04468512]
[1752064412994,6.4923,154.01,153.97,0.04468512]
[1752064413900,6.4923,154.01,153.98,6.4931]
[1752064414095,6.4923,154.01,153.97,0.04468512]
[1752064415200,6.4923,154.01,153.98,6.4931]
[1752064415699,6.4923,154.01,153.97,0.04468512]
[1752064415700,2.97151494,154.0,153.97,0.04468512]
[1752064416291,6.4932,153.99,153.97,0.04468512]
[1752064418202,6.4932,153.99,153.97,6.53848512]
[1752064418602,6.4926,154.0,153.97,0.04468512]
[1752064419602,6.4926,154.0,153.98,6.4932]
[1752064421902,6.4926,154.0,153.97,6.53828512]
[1752064422101,6.4926,154.0,153.97,0.04468512]
[1752064422902,6.4926,154.0,153.98,6.4931]
[1752064424108,6.4923,154.01,153.98,6.4931]
[1752064424712,6.4926,154.0,153.98,6.4931]
[1752064425109,1.6336,154.04,153.97,0.04468512]
[1752064425310,563.95151494,154.05,153.97,0.04468512]
[1752064425610,2.97151494,154.03,153.97,0.04468512]
[1752064425808,6.4924,154.01,153.98,6.4933]
[1752064426221,6.4924,154.01,153.97,0.04468512]
[1752064426711,6.4927,154.0,153.97,0.04468512]
[1752064427707,6.4923,154.01,153.98,6.4934]
[1752064428216,6.4916,154.03,154.0,2.97151494]
[1752064428409,5.22631494,154.06,154.0,2.97151494]
[1752064428604,2.97151494,154.04,153.92,204.07151494]
[1752064428911,2.97151494,154.04,154.01,0.04866881]
[1752064429317,2.97151494,154.02,153.96,6.4941]
[1752064430008,2.97151494,154.0,153.93,2.97151494]
[1752064430213,2.97151494,154.0,153.91,2.97151494]
[1752064430415,6.4937,153.98,153.94,6.4948]
[1752064430605,2.97151494,154.0,153.94,6.4948]
[1752064430809,9.06087867,154.05,153.91,2.97151494]
[1752064431005,6.493,153.99,153.96,6.494]
[1752064431210,2.97151494,154.02,153.89,336.48573696]
[1752064431211,2.97151494,154.02,153.94,2.97151494]
[1752064431607,6.4927,154.0,153.96,6.4941]
[1752064431817,6.4927,154.0,153.94,2.97151494]
[1752064432513,6.4927,154.0,153.96,6.4939]
[1752064433208,6.4936,153.98,153.92,2.97151494]
[1752064433422,6.4936,153.98,153.89,336.46573696]
[1752064433615,6.4936,153.98,153.92,2.97151494]
[1752064433813,6.4936,153.98,153.94,6.4948]
[1752064434415,6.4931,153.99,153.92,2.97151494]
[1752064434717,6.4931,153.99,153.94,2.97151494]
[1752064434913,9.06087867,154.05,153.96,2.97151494]
[1752064435107,2.97151494,154.03,153.96,2.97151494]
[1752064435311,13.03565509,154.02,153.96,2.97151494]
[1752064435511,4.66442223,154.01,153.96,2.97151494]
[1752064435809,2.97151494,154.01,153.92,7.0]
[1752064436116,2.97151494,154.01,153.93,2.97151494]
[1752064436518,6.4931,153.99,153.95,6.4945]
[1752064436713,2.97151494,154.01,153.95,6.4945]
[1752064436914,6.4935,153.98,153.95,6.4945]
[1752064441220,6.4935,153.98,153.93,2.97151494]
[1752064441921,6.4935,153.98,153.95,6.4943]
[1752064443719,6.4938,153.97,153.94,6.4949]
[1752064444521,2.97151494,153.96,153.87,560.92]
[1752064444821,12.03239361,154.0,153.87,563.89151494]
[1752064445023,16.05125439,153.99,153.91,2.97151494]
[1752064445213,4.70429337,153.98,153.91,2.97151494]
[1752064445519,6.4945,153.96,153.93,6.4954]
[1752064445716,6.4945,153.96,153.91,2.97151494]
[1752064446721,6.494,153.97,153.91,2.97151494]
[1752064447313,9.06087867,154.03,153.88,11.4353]
[1752064447516,19.97635095,154.02,153.95,2.97151494]
[1752064447823,6.4925,154.0,153.97,6.4937]
[1752064448012,12.03239361,154.04,153.95,2.97151494]
[1752064448217,16.98979474,154.03,153.97,2.97151494]
[1752064448422,13.03828848,154.02,153.97,2.97151494]
[1752064448623,4.68224599,154.01,153.97,2.97151494]
[1752064448818,2.97151494,154.04,153.97,2.97151494]
[1752064449020,16.98751203,154.03,153.97,2.97151494]
[1752064449220,6.4924,154.01,153.97,2.97151494]
[1752064449619,6.4924,154.01,153.97,9.46521494]
[1752064449814,6.4926,154.0,153.91,193.92]
[1752064450014,2.97151494,154.04,153.95,2.97151494]
[1752064450217,16.98747144,154.03,153.95,2.97151494]
[1752064450418,2.97151494,154.04,153.96,6.4942]
[1752064450419,13.03672237,154.02,153.96,6.4942]
[1752064450617,4.68161438,154.01,153.96,6.4942]
[1752064450819,2.97151494,154.04,153.96,6.4942]
[1752064451018,6.4929,154.0,153.96,6.4942]
[1752064451920,6.4929,154.0,153.97,6.4938]
[1752064453125,6.4923,154.01,153.98,6.4933]
[1752064453822,2.97151494,154.04,153.97,2.97151494]
[1752064454023,0.04903863,154.01,153.92,9.97151494]
[1752064454217,0.04903863,154.01,153.97,2.97151494]
[1752064454423,6.54133863,154.01,153.98,6.4932]
[1752064454933,6.54133863,154.01,153.99,6.493]
[1752064455128,6.54133863,154.01,153.97,2.97151494]
[1752064455330,0.04903863,154.01,153.98,6.4933]
[1752064456334,6.54123863,154.01,153.98,6.4933]
[1752064456538,0.04903863,154.01,153.99,6.4929]
[1752064458532,6.54133863,154.01,153.97,2.97151494]
[1752064460134,6.54133863,154.01,153.99,6.4929]
[1752064460522,6.54133863,154.01,153.97,2.97151494]
[1752064460726,6.54133863,154.01,153.98,6.4931]
[1752064461238,6.54133863,154.01,153.99,6.4929]
[1752064461437,0.04903863,154.01,153.99,6.4929]
[1752064463344,6.54123863,154.01,153.99,6.4929]
[1752064463532,6.54123863,154.01,153.98,6.4932]
[1752064464039,0.04903863,154.01,153.99,6.4928]
[1752064469945,0.04903863,154.01,153.97,2.97151494]
[1752064470544,0.04903863,154.01,154.0,6.4925]
[1752064472446,0.04903863,154.01,154.0,9.46401494]
[1752064476854,0.04903863,154.01,154.0,2.97151494]
[1752064477551,0.04903863,154.01,153.99,6.4928]
[1752064480148,0.04903863,154.01,153.98,2.97151494]
[1752064480856,0.04903863,154.01,153.99,6.4927]
[1752064481760,0.04903863,154.01,153.99,6.493]
[1752064482856,0.04903863,154.01,154.0,9.46401494]
[1752064483057,2.97151494,154.08,153.98,193.76851071]
[1752064483252,13.14811728,154.07,154.0,2.97151494]
[1752064483561,2.97151494,154.08,154.02,6.4917]
[1752064483855,6.491,154.04,154.01,6.4919]
[1752064484158,2.97151494,154.08,154.03,0.04923966]
[1752064484362,13.1474039,154.07,154.03,0.04923966]
[1752064484557,6.4909,154.04,154.03,0.04923966]
[1752064485152,9.06087867,154.1,154.03,0.04923966]
[1752064485458,13.14627843,154.09,154.03,3.0207546]
[1752064485658,2.97151494,154.11,154.06,6.4899]
[1752064485858,6.4888,154.09,154.06,6.4899]
[1752064486164,2.97151494,154.11,154.05,9.46171494]
[1752064486453,6.4892,154.08,154.06,0.04764689]
[1752064486661,2.97151494,154.11,154.06,0.04764689]
[1752064486854,13.16271618,154.1,154.06,0.04764689]
[1752064487054,6.4896,154.07,154.06,0.04764689]
[1752064487962,2.97151494,154.11,154.06,0.04764689]
[1752064488152,13.16821042,154.1,154.06,0.04764689]
[1752064488354,2.97151494,154.11,154.06,0.04764689]
[1752064488556,6.4894,154.08,154.06,0.04764689]
[1752064490660,6.4896,154.07,154.06,0.04764689]
[1752064491367,6.4893,154.08,154.06,0.04764689]
[1752064495068,6.4896,154.07,154.06,0.04764689]
[1752064496675,6.4894,154.08,154.06,0.04764689]
[1752064497674,6.4896,154.07,154.06,0.04764689]
[1752064498271,6.4893,154.08,154.06,0.04764689]
[1752064499374,6.4896,154.07,154.06,0.04764689]
[1752064501272,2.97151494,154.07,153.99,2.2387]
[1752064501576,2.97151494,154.04,153.99,8.7313]
[1752064501780,6.4918,154.02,153.99,8.7313]
[1752064501989,2.97151494,154.08,153.99,2.2387]
[1752064502175,2.97151494,154.04,153.99,2.2387]
[1752064502579,2.97151494,154.04,154.01,6.4921]
[1752064502879,6.4911,154.04,153.99,2.2387]
[1752064503280,6.4911,154.04,154.01,6.4918]
[1752064504078,6.4906,154.05,153.99,2.2387]
[1752064504473,6.4906,154.05,154.02,6.4915]
[1752064506385,9.06087867,154.13,154.02,2.97151494]
[1752064506582,17.1689359,154.12,154.02,2.97151494]
[1752064506770,6.4892,154.08,154.05,6.4902]
[1752064507981,2.97151494,154.11,154.04,6.4906]
[1752064508175,13.10854264,154.1,154.02,2.97151494]
[1752064508380,2.97151494,154.11,154.02,2.97151494]
[1752064508578,2.97151494,154.05,153.99,9.2387]
[1752064508875,2.97151494,154.03,153.96,2.97151494]
[1752064509280,2.97151494,154.03,153.99,6.4927]
[1752064509281,6.492,154.02,153.99,6.4927]
[1752064509676,2.97151494,154.04,153.96,2.97151494]
[1752064509880,6.4915,154.03,154.0,6.4923]
[1752064511785,6.4918,154.02,153.99,6.4927]
[1752064511985,2.97151494,154.04,153.97,2.97151494]
[1752064512286,6.4915,154.03,154.0,6.4925]
[1752064513289,6.4917,154.02,153.99,6.4928]
[1752064514177,6.4915,154.03,153.99,6.4928]
[1752064515185,6.4915,154.03,154.0,6.4925]
[1752064517785,9.46261494,154.04,154.01,6.4921]
[1752064517985,2.97151494,154.06,153.99,2.97151494]
[1752064519186,6.4906,154.05,154.02,6.4915]
[1752064522993,6.4909,154.04,154.02,6.4915]
[1752064523297,6.4909,154.04,154.01,6.4919]
[1752064525192,6.4913,154.03,154.01,6.4919]
[1752064525491,6.4913,154.03,154.0,6.4924]
[1752064526089,6.4913,154.03,154.01,6.4921]
[1752064526493,9.46261494,154.04,154.01,6.4921]
[1752064526893,2.97151494,154.04,154.01,6.4921]
[1752064527194,6.4915,154.03,154.0,6.4923]
[1752064527394,2.97151494,154.04,153.97,2.97151494]
[1752064527593,2.97151494,154.04,153.99,6.4928]
[1752064527919,2.97151494,154.05,153.97,2.97151494]
[1752064528495,6.4918,154.02,153.99,6.4928]
[1752064532295,13.07178372,154.09,153.99,6.4928]
[1752064532296,6.4915,154.03,153.99,6.4928]
[1752064532793,2.97151494,154.05,153.99,6.4928]
[1752064533098,6.4917,154.02,153.99,6.4928]
[1752064533497,13.07178372,154.09,154.0,6.4925]
[1752064533701,6.4914,154.03,154.0,6.4925]
[1752064533997,2.97151494,154.05,154.0,6.4925]
[1752064536006,6.4916,154.03,154.0,6.4925]
[1752064536301,6.4916,154.03,153.97,2.97151494]
[1752064536996,6.4916,154.03,154.0,6.4923]
[1752064542201,6.4911,154.04,154.01,6.492]
[1752064543694,6.4907,154.05,154.02,6.4917]
[1752064544099,2.97151494,154.07,154.02,6.4917]
[1752064544296,6.4908,154.05,154.02,6.4917]
[1752064545803,6.4909,154.04,154.02,6.4917]
[1752064546106,6.4909,154.04,154.01,6.4919]
[1752064548808,6.4909,154.04,153.99,2.97151494]
[1752064549305,0.04382654,154.03,154.01,6.4919]
[1752064553110,6.53512654,154.03,154.0,6.4923]
[1752064553612,0.04382654,154.03,154.0,6.4923]
[1752064554510,0.04382654,154.03,154.01,6.4921]
[1752064555511,6.53532654,154.03,154.01,6.4921]
[1752064555712,0.04382654,154.03,154.01,6.4921]
[1752064557202,6.53512654,154.03,154.01,6.4921]
[1752064557508,0.04382654,154.03,154.02,6.4917]
[1752064562316,12.08327572,154.11,154.01,2.97151494]
[1752064562618,17.20204853,154.1,154.04,2.97151494]
[1752064562811,6.4895,154.08,154.04,2.97151494]
[1752064563015,4.73048842,154.07,154.04,2.97151494]
[1752064563223,12.08327572,154.11,154.04,2.97151494]
[1752064563420,6.4898,154.07,154.04,9.46211494]
[1752064563616,6.4898,154.07,154.06,0.04423542]
[1752064564720,6.4894,154.08,154.06,0.04423542]
[1752064566119,6.4889,154.09,154.06,6.53413542]
[1752064566316,2.97151494,154.11,154.06,0.04423542]
[1752064566518,13.15617794,154.1,154.06,0.04423542]
[1752064566721,6.4895,154.08,154.06,0.04423542]
[1752064567722,9.11176078,154.13,154.06,0.04423542]
[1752064567923,20.22852041,154.12,154.06,0.04423542]
[1752064568124,13.19679053,154.11,154.06,0.04423542]
[1752064568319,8.42880031,154.1,154.06,3.01575036]
[1752064568515,2.97151494,154.12,154.06,3.01575036]
[1752064568822,13.1921718,154.11,154.06,3.01575036]
[1752064569027,8.4261025,154.1,154.06,3.01575036]
[1752064569225,6.4883,154.1,154.07,6.4893]
[1752064569422,6.4883,154.1,154.06,3.01575036]
[1752064570024,6.4883,154.1,154.07,6.4893]
[1752064570223,6.488,154.11,154.07,6.4893]
[1752064570429,2.97151494,154.13,154.07,6.4893]
[1752064570623,13.22046595,154.12,154.07,6.4893]
[1752064570824,6.4886,154.1,154.06,6.53403542]
[1752064571121,6.4886,154.1,154.06,6.4898]
[1752064571320,6.4881,154.11,154.07,6.4893]
[1752064571530,6.4881,154.11,154.06,0.0457]
[1752064572026,6.4877,154.12,154.08,6.4891]
[1752064572222,8.4552767,154.11,154.08,6.4891]
[1752064572427,6.4877,154.12,154.08,6.4891]
[1752064572626,8.45366203,154.11,154.08,6.53868742]
[1752064572926,6.488,154.11,154.08,6.53868742]
[1752064573730,2.97151494,154.12,154.08,0.04958742]
[1752064574231,6.4887,154.09,154.08,0.04958742]
[1752064574726,9.46021494,154.09,154.08,0.04958742]
[1752064575424,6.4881,154.11,154.08,0.04958742]
[1752064575730,2.97151494,154.14,154.08,0.04958742]
[1752064575925,17.32008362,154.13,154.08,0.04958742]
[1752064576126,4.79118573,154.12,154.08,0.04958742]
[1752064576328,2.97151494,154.14,154.08,0.04958742]
[1752064576532,6.4881,154.11,154.08,0.04958742]
[1752064576720,2.97151494,154.14,154.08,0.04958742]
[1752064576924,2.97151494,154.12,154.08,0.04958742]
[1752064577125,6.4886,154.1,154.08,0.04958742]
[1752064577333,2.97151494,154.12,154.08,0.04958742]
[1752064577828,6.4887,154.09,154.08,0.04958742]
[1752064578735,4.79131242,154.09,154.01,2.97151494]
[1752064578934,2.97151494,154.07,154.01,2.97151494]
[1752064579130,2.97151494,154.07,154.0,2.97151494]
[1752064579329,6.4907,154.05,154.02,6.4917]
[1752064579526,6.4907,154.05,154.0,2.97151494]
[1752064579933,0.04521035,154.04,154.03,6.4913]
[1752064581942,0.04521035,154.04,154.02,6.4915]
[1752064582835,0.04521035,154.04,154.03,6.4913]
[1752064583241,0.04521035,154.04,153.99,2.97151494]
[1752064584444,0.04521035,154.04,154.01,2.97151494]
[1752064584842,0.04521035,154.04,154.02,6.4917]
[1752064587245,0.04521035,154.04,154.03,6.4913]
[1752064588144,0.04521035,154.04,154.03,9.46281494]
[1752064589648,0.04521035,154.04,154.02,6.53372169]
[1752064589949,0.04521035,154.04,154.02,0.04242169]
[1752064590548,0.04521035,154.04,154.03,6.4913]
[1752064592448,0.04521035,154.04,154.02,6.53392169]
[1752064593146,0.04521035,154.04,154.02,0.04242169]
[1752064593357,3.01672529,154.04,153.98,2.256]
[1752064593558,3.01672529,154.04,153.96,563.55151494]
[1752064593746,6.4915,154.03,154.0,6.4923]
[1752064594850,6.4915,154.03,154.01,6.492]
[1752064595247,9.50772529,154.04,154.01,6.492]
[1752064595740,3.01672529,154.04,154.01,6.492]
[1752064595944,0.04521035,154.04,154.0,2.97151494]
[1752064596844,0.04521035,154.04,154.02,2.97151494]
[1752064597045,0.04521035,154.04,154.03,6.4913]
[1752064599255,82.3008562,154.12,154.02,2.97151494]
[1752064599448,17.13010375,154.11,154.05,2.97151494]
[1752064599656,16.05790825,154.1,154.01,4.416]
[1752064599855,6.4903,154.06,154.03,6.4911]
[1752064600457,6.53958308,154.06,154.03,6.4911]
[1752064600753,0.04928308,154.06,154.04,6.4907]
[1752064604555,6.53928308,154.06,154.04,6.4907]
[1752064605360,0.04928308,154.06,154.04,6.4907]
[1752064607062,0.04928308,154.06,154.03,6.53935111]
[1752064607557,6.53958308,154.06,154.03,6.53935111]
[1752064607962,0.04928308,154.06,154.03,6.53935111]
[1752064608262,6.53958308,154.06,154.03,6.53935111]
[1752064608464,0.04928308,154.06,154.03,6.53935111]
[1752064608661,0.04928308,154.06,154.03,0.04805111]
[1752064608962,6.4904,154.05,154.03,0.04805111]
[1752064609553,6.4908,154.04,154.03,0.04805111]
[1752064610659,6.4923,154.01,153.97,4.4122]
[1752064610961,2.97151494,154.04,153.97,4.4122]
[1752064611959,6.53911874,154.02,153.99,6.4927]
[1752064612158,0.04711874,154.02,153.97,4.4122]
[1752064612360,3.01863368,154.02,153.96,560.58]
[1752064612566,6.4923,154.01,153.96,560.58]
[1752064613163,6.4923,154.01,153.98,6.4931]
[1752064613567,6.4923,154.01,153.96,560.58]
[1752064614762,6.4923,154.01,153.98,6.4931]
[1752064616563,6.53901874,154.02,153.99,6.4929]
[1752064617067,6.53901874,154.02,153.97,2.97151494]
[1752064617068,0.04711874,154.02,153.97,2.97151494]
[1752064617268,0.04711874,154.02,154.0,6.4925]
[1752064618767,6.53881874,154.02,153.99,9.46431494]
[1752064618966,6.53881874,154.02,153.99,6.4928]
[1752064620669,6.53881874,154.02,154.0,6.4925]
[1752064624194,6.4924,154.01,153.96,2.97151494]
[1752064624473,0.04711874,154.02,153.96,2.97151494]
[1752064624868,2.97151494,154.09,154.0,2.97151494]
[1752064625069,17.24741874,154.08,154.02,2.97151494]
[1752064625373,6.4907,154.05,154.02,9.46291494]
[1752064626172,6.4907,154.05,154.03,6.4913]
[1752064628167,2.97151494,154.09,154.04,6.4907]
[1752064628469,6.4898,154.07,154.04,6.4907]
[1752064630275,2.97151494,154.09,154.04,6.4907]
[1752064630576,2.97151494,154.07,154.0,2.97151494]
[1752064630779,6.4907,154.05,154.0,2.97151494]
[1752064631073,10.76617881,154.12,154.03,6.4909]
[1752064631074,2.97151494,154.09,154.03,6.4909]
[1752064631274,13.24805865,154.08,154.03,6.4909]
[1752064631490,6.4901,154.06,154.03,6.4909]
[1752064632470,6.4905,154.05,154.03,6.4909]
[1752064632672,2.97151494,154.07,154.02,6.4915]
[1752064632873,4.82770148,154.06,154.02,6.4915]
[1752064633066,6.4908,154.05,154.02,6.4915]
[1752064633267,2.97151494,154.07,154.01,6.4919]
[1752064633467,6.491,154.04,154.0,2.97151494]
[1752064633672,6.491,154.04,153.97,192.22]
[1752064633873,6.491,154.04,154.01,6.4918]
[1752064636373,6.491,154.04,154.02,6.4916]
[1752064636569,6.53210036,154.04,154.02,6.4916]
[1752064637779,6.53210036,154.04,154.01,6.4919]
[1752064637980,6.53210036,154.04,154.0,2.97151494]
[1752064638169,6.53210036,154.04,153.98,4.4256]
[1752064638479,6.53210036,154.04,154.01,6.4919]
[1752064640580,6.53210036,154.04,154.02,6.4916]
[1752064640887,0.04110036,154.04,154.02,6.4916]
[1752064641079,0.04110036,154.04,154.01,6.4919]
[1752064641279,0.04110036,154.04,153.99,2.97151494]
[1752064641680,0.04110036,154.04,154.01,6.4918]
[1752064641886,6.53210036,154.04,153.99,2.97151494]
[1752064642083,0.04110036,154.04,154.02,6.4916]
[1752064642575,6.53210036,154.04,154.01,6.4919]
[1752064643882,6.53210036,154.04,154.02,6.4916]
[1752064646582,0.04110036,154.04,154.02,6.4916]
[1752064647480,0.04110036,154.04,154.03,6.4913]
[1752064650181,6.53200036,154.04,154.02,6.4915]
[1752064650688,0.04110036,154.04,154.03,6.4913]
[1752064650877,0.04110036,154.04,154.03,9.46281494]
[1752064651083,6.4893,154.08,154.03,2.97151494]
[1752064651384,4.82466204,154.07,154.05,2.97151494]
[1752064651582,9.09474242,154.12,154.05,2.97151494]
[1752064651780,17.31817313,154.11,154.05,2.97151494]
[1752064652083,23.80667313,154.1,154.07,6.4893]
[1752064652284,17.31817313,154.09,154.06,0.04220687]
[1752064652585,4.82491677,154.08,154.06,0.04220687]
[1752064652780,6.4886,154.1,154.07,6.4896]
[1752064652988,4.82418097,154.09,154.06,0.04220687]
[1752064653305,6.4885,154.1,154.07,6.4894]
[1752064653490,4.82349933,154.09,154.07,6.4894]
[1752064653680,6.4885,154.1,154.07,6.4894]
[1752064655981,6.4881,154.11,154.06,0.04220687]
[1752064656582,2.97151494,154.13,154.07,2.97151494]
[1752064656783,2.97151494,154.17,154.09,2.97151494]
[1752064656983,17.38688766,154.16,154.09,2.97151494]
[1752064657184,6.4866,154.14,154.09,2.97151494]
[1752064657387,6.4866,154.14,154.11,0.0488466]
[1752064657888,2.97151494,154.17,154.11,0.0488466]
[1752064658088,17.41944797,154.16,154.11,0.0488466]
[1752064658284,2.97151494,154.17,154.11,0.0488466]
[1752064658285,13.32530812,154.15,154.11,3.02036154]
[1752064658489,6.4864,154.15,154.12,6.4873]
[1752064660591,6.4869,154.14,154.11,9.50816154]
[1752064660794,2.97151494,154.17,154.11,9.50816154]
[1752064660993,4.92560925,154.16,154.11,9.50816154]
[1752064661193,2.97151494,154.17,154.11,0.0488466]
[1752064661492,4.92379202,154.16,154.11,0.0488466]
[1752064661689,2.97151494,154.17,154.11,0.0488466]
[1752064661894,6.4873,154.13,154.11,0.0488466]
[1752064662594,6.4873,154.13,154.11,6.5367466]
[1752064663894,6.4873,154.13,154.11,0.0488466]
[1752064664398,6.4868,154.14,154.11,6.5366466]
[1752064664694,2.97151494,154.17,154.1,2.97151494]
[1752064665094,6.4871,154.13,154.11,0.04249906]
[1752064666696,6.4868,154.14,154.11,6.53029906]
[1752064668502,6.4872,154.13,154.11,6.53029906]
[1752064668797,265.64105192,154.21,154.11,0.04249906]
[1752064668994,2.97151494,154.15,154.11,0.04249906]
[1752064669199,2.97151494,154.14,154.09,6.4885]
[1752064669501,6.4877,154.12,154.11,0.04242843]
[1752064685908,2.97151494,154.16,154.11,6.53022843]
[1752064686109,4.88182418,154.15,154.11,6.53022843]
[1752064686307,2.97151494,154.18,154.12,2.97151494]
[1752064686509,6.4864,154.15,154.12,9.45861494]
[1752064688514,6.4864,154.15,154.12,2.97151494]
[1752064688714,6.4866,154.14,154.11,0.04242843]
[1752064688914,6.4866,154.14,154.11,3.01394337]
[1752064689920,6.4871,154.13,154.11,6.53012843]
[1752064690114,2.97151494,154.18,154.11,6.53012843]
[1752064690418,6.4871,154.13,154.11,6.53012843]
[1752064691424,6.4868,154.14,154.11,6.53012843]
[1752064692616,6.4871,154.13,154.11,6.53012843]
[1752064694517,6.4869,154.14,154.11,6.53012843]
[1752064694730,2.97151494,154.18,154.11,6.53012843]
[1752064694919,17.54478156,154.17,154.11,6.53012843]
[1752064695115,13.41552747,154.16,154.11,6.53012843]
[1752064695318,4.91629911,154.15,154.11,6.53012843]
[1752064695521,2.97151494,154.16,154.11,0.04242843]
[1752064695713,4.91941385,154.15,154.11,0.04242843]
[1752064695915,6.4873,154.13,154.11,6.53032843]
[1752064696623,6.4873,154.13,154.11,0.04242843]
[1752064696923,6.4875,154.12,154.11,0.04242843]
[1752064698327,6.4874,154.13,154.11,0.04242843]
[1752064699227,6.4868,154.14,154.11,6.53022843]
[1752064699430,9.09474242,154.18,154.12,2.97151494]
[1752064699634,17.56368221,154.17,154.12,2.97151494]
[1752064699929,6.4864,154.15,154.12,9.45891494]
[1752064700131,4.92965922,154.14,154.12,9.45891494]
[1752064700431,6.4864,154.15,154.12,9.45891494]
[1752064700730,11.41612246,154.14,154.12,6.4874]
[1752064701033,6.4867,154.14,154.12,6.4874]
[1752064702131,6.4867,154.14,154.11,6.53012843]
[1752064703234,6.4864,154.15,154.12,6.4874]
[1752064703429,9.09474242,154.2,154.11,0.04242843]
[1752064703630,6.4863,154.15,154.13,6.4869]
[1752064703829,6.4863,154.15,154.12,2.97151494]
[1752064704337,6.4863,154.15,154.12,3.01606434]
[1752064704534,6.4863,154.15,154.12,9.50326434]
[1752064705434,6.4863,154.15,154.13,6.487]
[1752064705734,6.486,154.16,154.13,6.487]
[1752064706426,82.87579434,154.21,154.15,6.4862]
[1752064706427,6.4853,154.18,154.15,6.4862]
[1752064706630,4.92784276,154.17,154.14,2.97151494]
[1752064706832,6.4853,154.18,154.14,2.97151494]
[1752064707032,4.92756027,154.17,154.14,3.01940115]
[1752064707231,6.4853,154.18,154.15,6.4859]
[1752064707431,4.92389367,154.17,154.14,3.01940115]
[1752064707738,6.4848,154.19,154.16,6.4858]
[1752064708235,73.78105192,154.21,154.16,9.45711494]
[1752064708435,13.44544468,154.2,154.16,9.45711494]
[1752064708634,4.92287092,154.19,154.16,9.45711494]
[1752064708835,6.4849,154.19,154.16,9.45711494]
[1752064710335,6.4849,154.19,154.17,6.4854]
[1752064712133,6.4854,154.17,154.14,2.33838621]
[1752064712337,73.78105192,154.21,154.15,2.97151494]
[1752064712535,4.91411832,154.2,154.15,2.97151494]
[1752064712835,6.4849,154.19,154.15,2.97151494]
[1752064713230,6.4849,154.19,154.16,6.52702826]
[1752064713428,6.485,154.18,154.16,0.04142826]
[1752064714642,6.4854,154.17,154.16,0.04142826]
[1752064715436,6.4869,154.14,154.09,5.21251494]
[1752064715936,2.97151494,154.17,154.11,6.4877]
[1752064716639,6.4869,154.14,154.09,5.21251494]
[1752064717145,6.4869,154.14,154.11,6.4877]
[1752064717540,0.04773563,154.13,154.11,6.4877]
[1752064718238,0.04773563,154.13,154.1,0.04315544]
[1752064718941,3.01925057,154.13,154.1,0.04315544]
[1752064719342,6.4879,154.11,154.1,0.04315544]
[1752064722447,6.489,154.09,154.07,2.3372]
[1752064724354,6.489,154.09,154.07,8.8265]
[1752064727145,6.4894,154.08,154.05,2.97151494]